fUST/lending_fUST_20260111
["ID","MTS","AMOUNT","RATE_DAILY","PERIOD"]
[401309646,1768125047061,-210.77216325,0.0002796,5]
[401309647,1768125047071,-5000.0,0.00028037,2]
[401309648,1768125047080,-616.44,0.000281,2]
[401309649,1768125047089,-13367.01,0.000282,2]
[401309650,1768125047099,-1000.0,0.00028216,30]
[401309651,1768125047108,-1000.0,0.00028216,30]
[401309652,1768125047117,-1000.0,0.00028216,30]
[401309653,1768125047126,-616.44,0.000286,2]
[401309654,1768125047135,-211.0,0.00028712,30]
[401309655,1768125047146,-210.77216324,0.00028836,5]
[401309656,1768125047155,-8382.93313115,0.0002902,2]
[401309657,1768125047164,-616.44,0.000291,2]
[401309658,1768125047173,-1149.35731304,0.00029225,2]
[401309659,1768125047183,-5394.07147268,0.00029234,2]
[401309660,1768125047196,-468.6,0.00029564,4]
[401309661,1768125047205,-616.44,0.000296,2]
[401309662,1768125047215,-1087.80747027,0.00029763,2]
[401309663,1768125047225,-151.0,0.0003,14]
[401309664,1768125047234,-160.21,0.000301,2]
[401309665,1768125047243,-151.0,0.00030132,7]
[401309666,1768125047253,-151.0,0.00030132,7]
[401309667,1768125047263,-500.0,0.00030136,2]
[401309668,1768125047272,-300.0,0.00030137,5]
[401309669,1768125047282,-506.7938,0.00030137,2]
[401309670,1768125047292,-506.7938,0.00030137,3]
[401309671,1768125047301,-5000.0,0.00030203,2]
[401309672,1768125047311,-151.0,0.00030359,2]
[401309673,1768125047321,-151.0,0.00030359,2]
[401309674,1768125047330,-151.0,0.00030359,2]
[401309675,1768125047340,-151.0,0.00030359,2]
[401309676,1768125047349,-151.0,0.00030359,2]
[401309677,1768125047359,-151.0,0.00030359,2]
[401309678,1768125047368,-151.0,0.00030359,2]
[401309679,1768125047378,-151.0,0.00030359,2]
[401309680,1768125047387,-151.0,0.00030359,2]
[401309681,1768125047396,-151.0,0.00030359,2]
[401309682,1768125047406,-151.0,0.00030359,2]
[401309683,1768125047415,-151.0,0.00030359,2]
[401309684,1768125047424,-151.0,0.00030359,2]
[401309685,1768125047434,-151.0,0.00030359,2]
[401309686,1768125047443,-151.0,0.00030359,2]
[401309687,1768125047453,-151.0,0.00030359,2]
[401309688,1768125047462,-151.0,0.00030359,2]
[401309689,1768125047471,-151.0,0.00030359,2]
[401309690,1768125047481,-151.0,0.00030359,2]
[401309691,1768125047491,-151.0,0.00030359,2]
[401309692,1768125047500,-151.0,0.00030359,2]
[401309693,1768125047509,-151.0,0.00030359,2]
[401309694,1768125047518,-151.0,0.00030359,2]
[401309695,1768125047527,-151.0,0.00030359,2]
[401309696,1768125047536,-151.0,0.00030359,2]
[401309697,1768125047545,-151.0,0.00030359,2]
[401309698,1768125047555,-151.0,0.00030359,2]
[401309699,1768125047565,-151.0,0.00030359,2]
[401309700,1768125047575,-151.0,0.00030359,2]
[401309701,1768125047585,-151.0,0.00030359,2]
[401309702,1768125047594,-151.0,0.00030359,2]
[401309703,1768125047604,-151.0,0.00030359,2]
[401309704,1768125047614,-151.0,0.00030359,2]
[401309705,1768125047623,-151.0,0.00030359,2]
[401309706,1768125047633,-151.0,0.00030359,2]
[401309707,1768125047643,-151.0,0.00030359,2]
[401309708,1768125047652,-151.0,0.00030359,2]
[401309709,1768125047662,-151.0,0.00030359,2]
[401309710,1768125047671,-151.0,0.00030359,2]
[401309711,1768125047680,-151.0,0.00030359,2]
[401309712,1768125047689,-381.0,0.00030636,7]
[401309713,1768125047699,-381.0,0.00030709,2]
[401309714,1768125047710,-381.0,0.00030761,7]
[401309715,1768125047719,-151.0,0.000308,20]
[401309716,1768125047729,-151.0,0.000308,10]
[401309717,1768125047738,-163.0,0.00030904,43]
[401309718,1768125047747,-381.0,0.00030956,2]
[401309719,1768125047757,-381.0,0.00031035,2]
[401309720,1768125047766,-500.0,0.000311,7]
[401309721,1768125047775,-500.0,0.00031106,2]
[401309722,1768125047785,-381.0,0.00031188,7]
[401309723,1768125047795,-382.0,0.00031214,2]
[401309724,1768125047804,-1223.24456888,0.00031225,2]
[401309725,1768125047815,-381.0,0.00031255,2]
[401309726,1768125047823,-381.0,0.00031271,7]
[401309727,1768125047832,-13367.01,0.000313,2]
[401309728,1768125047843,-381.0,0.00031415,2]
[401309729,1768125047855,-2083.96135666,0.0003143,2]
[401309730,1768125047864,-468.6,0.00031439,5]
[401309731,1768125047874,-8428.23667606,0.00031444,2]
[401309732,1768125047883,-381.0,0.00031498,2]
[401309733,1768125047893,-381.0,0.00031532,2]
[401309734,1768125047904,-381.0,0.00031554,2]
[401309735,1768125047914,-381.0,0.00031737,2]
[401309736,1768125047926,-3046.01425106,0.00031902,2]
[401309737,1768125047937,-536.72987461,0.00031955,7]
[401309738,1768125047947,-382.0,0.0003207,2]
[401309739,1768125047958,-1087.80747027,0.00032091,2]
[401309740,1768125047969,-382.0,0.00032226,2]
[401309741,1768125047978,-384.0,0.00032231,2]
[401309742,1768125047988,-5000.0,0.0003237,2]
[401309743,1768125047998,-1000.0,0.000324,120]
[401309744,1768125048007,-2140.41,0.000328,14]
[401309745,1768125048017,-999.0,0.00032876,120]
[401309746,1768125048026,-631.09,0.00032877,10]
[401309747,1768125048036,-525.9,0.00032877,10]
[401309748,1768125048046,-438.25,0.00032877,10]
[401309749,1768125048055,-300.0,0.00032877,5]
[401309750,1768125048066,-450.0,0.00032877,5]
[401309751,1768125048075,-382.0,0.00032878,7]
[401309752,1768125048085,-381.0,0.00032937,7]
[401309753,1768125048095,-381.0,0.00032985,2]
[401309754,1768125048104,-174.0,0.00033096,58]
[401309755,1768125048114,-2870.56440789,0.0003312,2]
[401309756,1768125048123,-382.0,0.00033144,7]
[401309757,1768125048133,-1045039.0068,0.0003322,30]
[401309758,1768125048142,-151.0,0.0003322,31]
[401309759,1768125048151,-151.0,0.0003322,31]
[401309760,1768125048160,-151.0,0.0003322,31]
[401309761,1768125048169,-151.0,0.0003322,31]
[401309762,1768125048179,-151.0,0.0003322,31]
[401309763,1768125048192,-151.0,0.0003322,31]
[401309764,1768125048202,-163.811911,0.0003322,31]
[401309765,1768125048212,-175.972983,0.0003322,31]
[401309766,1768125048222,-264.224,0.0003322,31]
[401309767,1768125048231,-264.224,0.0003322,31]
[401309768,1768125048243,-264.224,0.0003322,31]
[401309769,1768125048252,-264.224,0.0003322,31]
[401309770,1768125048263,-151.0,0.0003322,31]
[401309771,1768125048272,-177.831998,0.0003322,7]
[401309772,1768125048281,-382.637039,0.0003322,31]
[401309773,1768125048290,-382.637039,0.0003322,31]
[401309774,1768125048301,-382.637039,0.0003322,31]
[401309775,1768125048310,-382.637039,0.0003322,31]
[401309776,1768125048319,-151.0,0.0003322,31]
[401309777,1768125048328,-151.0,0.0003322,31]
[401309778,1768125048338,-151.0,0.0003322,31]
[401309779,1768125048349,-151.0,0.0003322,31]
[401309780,1768125048359,-232.476622,0.0003322,31]
[401309781,1768125048368,-157.400999,0.0003322,31]
[401309782,1768125048377,-151.0,0.0003322,31]
[401309783,1768125048386,-151.0,0.0003322,7]
[401309784,1768125048395,-151.0,0.0003322,7]
[401309785,1768125048407,-151.0,0.0003322,31]
[401309786,1768125048416,-151.0,0.0003322,31]
[401309787,1768125048427,-160.734397,0.0003322,31]
[401309788,1768125048436,-159.196638,0.0003322,31]
[401309789,1768125048446,-239.620179,0.0003322,31]
[401309790,1768125048455,-728.329358,0.0003322,31]
[401309791,1768125048464,-728.329358,0.0003322,31]
[401309792,1768125048474,-728.329358,0.0003322,31]
[401309793,1768125048483,-728.329358,0.0003322,31]
[401309794,1768125048492,-151.0,0.0003322,2]
[401309795,1768125048502,-152.205819,0.0003322,31]
[401309796,1768125048512,-151.0,0.0003322,31]
[401309797,1768125048523,-151.0,0.0003322,31]
[401309798,1768125048533,-151.0,0.0003322,31]
[401309799,1768125048542,-151.0,0.0003322,31]
[401309800,1768125048552,-151.0,0.0003322,31]
[401309801,1768125048562,-173.073557,0.0003322,31]
[401309802,1768125048571,-151.0,0.0003322,31]
[401309803,1768125048580,-151.0,0.0003322,31]
[401309804,1768125048590,-151.0,0.0003322,31]
[401309805,1768125048599,-173.073557,0.0003322,31]
[401309806,1768125048609,-151.0,0.0003322,31]
[401309807,1768125048620,-173.073557,0.0003322,31]
[401309808,1768125048631,-173.073557,0.0003322,31]
[401309809,1768125048641,-151.0,0.0003322,31]
[401309810,1768125048651,-151.0,0.0003322,31]
[401309811,1768125048660,-151.0,0.0003322,31]
[401309812,1768125048669,-151.0,0.0003322,31]
[401309813,1768125048678,-1371.756404,0.0003322,31]
[401309814,1768125048687,-151.0,0.0003322,31]
[401309815,1768125048696,-1371.756404,0.0003322,31]
[401309816,1768125048705,-1371.756404,0.0003322,31]
[401309817,1768125048714,-1371.756404,0.0003322,31]
[401309818,1768125048724,-221.073797,0.0003322,31]
[401309819,1768125048733,-151.0,0.0003322,31]
[401309820,1768125048742,-151.0,0.0003322,31]
[401309821,1768125048752,-2435.3495088,0.00033224,2]
[401309822,1768125048761,-34463.2894326,0.00033224,2]
[401309823,1768125048772,-1297.13182471,0.00033225,120]
[401309824,1768125048784,-381.0,0.00033253,2]
[401309825,1768125048795,-1112.0,0.00033298,2]
[401309826,1768125048805,-1112.0,0.00033299,2]
[401309827,1768125048815,-468.6,0.00033315,6]
[401309828,1768125048824,-2948.49871428,0.00033324,7]
[401309829,1768125048833,-1745.14077057,0.00033324,7]
[401309830,1768125048842,-500.0,0.00033331,2]
[401309831,1768125048851,-600.0,0.00033425,5]
[401309832,1768125048862,-381.0,0.00033619,2]
[401309833,1768125048872,-381.0,0.00033676,2]
[401309834,1768125048882,-210.0,0.00033699,5]
[401309835,1768125048891,-163.38,0.000337,10]
[401309836,1768125048901,-382.0,0.00033722,2]
[401309837,1768125048910,-500.0,0.00033889,2]
[401309838,1768125048919,-64142.26753541,0.000339,10]
[401309839,1768125048928,-999.0,0.00033972,120]
[401309840,1768125048937,-900.0,0.00033973,5]
[401309841,1768125048947,-13367.01,0.00034,14]
[401309842,1768125048956,-1041.66666667,0.00034,30]
[401309843,1768125048965,-415.97,0.00034038,60]
[401309844,1768125048974,-800.0,0.00034086,2]
[401309845,1768125048983,-629.16420479,0.0003411,2]
[401309846,1768125048993,-415.97,0.00034138,60]
[401309847,1768125049002,-415.97,0.00034238,60]
[401309848,1768125049011,-800.0,0.00034249,2]
[401309849,1768125049021,-3432.40694038,0.00034282,7]
[401309850,1768125049030,-800.0,0.0003429,2]
[401309851,1768125049039,-415.97,0.00034338,60]
[401309852,1768125049048,-500.0,0.00034399,2]
[401309853,1768125049057,-1087.80747027,0.0003442,2]
[401309854,1768125049066,-2560.29818,0.00034435,2]
[401309855,1768125049074,-415.97,0.00034438,60]
[401309856,1768125049084,-6627.48798502,0.00034506,7]
[401309857,1768125049094,-547.0,0.00034519,30]
[401309858,1768125049103,-756.0,0.00034519,30]
[401309859,1768125049112,-720.0,0.00034519,30]
[401309860,1768125049122,-1200.0,0.00034521,5]
[401309861,1768125049221,-270.0,0.00034521,5]
[401309862,1768125049234,-1095.40809829,0.00034534,3]
[401309863,1768125049244,-461.67526834,0.00034534,3]
[401309864,1768125049255,-151.0,0.00034534,3]
[401309865,1768125049266,-478.75725327,0.00034534,3]
[401309866,1768125049277,-151.0,0.00034534,3]
[401309867,1768125049288,-151.0,0.00034534,3]
[401309868,1768125049299,-496.47127164,0.00034534,3]
[401309869,1768125049310,-250.15738416,0.00034534,3]
[401309870,1768125049320,-153.90472729,0.00034534,3]
[401309871,1768125049335,-514.84070869,0.00034534,3]
[401309872,1768125049345,-533.88981491,0.00034534,3]
[401309873,1768125049355,-562.55157284,0.00034534,3]
[401309874,1768125049364,-151.0,0.00034534,3]
[401309875,1768125049374,-151.0,0.00034534,3]
[401309876,1768125049384,-151.0,0.00034534,3]
[401309877,1768125049394,-151.0,0.00034534,3]
[401309878,1768125049403,-151.0,0.00034534,3]
[401309879,1768125049412,-151.0,0.00034534,3]
[401309880,1768125049421,-151.0,0.00034534,3]
[401309881,1768125049431,-151.0,0.00034534,3]
[401309882,1768125049440,-151.0,0.00034534,3]
[401309883,1768125049450,-151.0,0.00034534,3]
[401309884,1768125049461,-151.0,0.00034534,3]
[401309885,1768125049471,-151.0,0.00034534,3]
[401309886,1768125049480,-151.0,0.00034534,3]
[401309887,1768125049490,-151.0,0.00034534,3]
[401309888,1768125049499,-151.0,0.00034534,3]
[401309889,1768125049508,-151.0,0.00034534,3]
[401309890,1768125049518,-271.40103972,0.00034534,3]
[401309891,1768125049527,-154.07167593,0.00034534,3]
[401309892,1768125049537,-223.13477496,0.00034534,3]
[401309893,1768125049547,-5000.0,0.00034536,3]
[401309894,1768125049556,-337.446,0.00034627,39]
[401309895,1768125049566,-500.0,0.00034649,2]
[401309896,1768125049576,-1763976.15022344,0.0003465,2]
[401309897,1768125049671,-980.33551009,0.0003465,2]
[401309898,1768125049734,-1889.842077,0.000249,7]
[401309899,1768125049743,-1089.4325505,0.000249,7]
[401309900,1768125049754,-800.4095265,0.000249,7]
[401309901,1768125049763,-365.21,0.00032877,10]
[401309902,1768125049772,-1889.842077,0.0003322,31]
[401309903,1768125049782,-34683.40258957,0.0003465,2]
[401309904,1768125049853,-200.0,0.00011274,2]
[401309905,1768125049863,-233.44259697,0.000249,7]
[401309906,1768125049880,-1656.39948003,0.000249,7]
[401309907,1768125049890,-1889.842077,0.0003322,31]
[401309908,1768125049899,-1240.24412709,0.0003322,31]
[401309909,1768125072960,173.07277092,0.00023672,110]
[401309910,1768125144841,159.21,8.543e-05,2]
[401309911,1768125287600,159.22,8.5e-05,2]
[401309913,1768125317640,-191.07,9.067e-05,2]
[401309914,1768125372071,155.0,5.98e-05,2]
[401309915,1768125448556,-3479.15030418,8.694e-05,2]
[401309916,1768125448706,-10000.01,8.694e-05,2]
[401309917,1768125448965,-3060.57724782,8.694e-05,2]
[401309938,1768125599779,-164.32,9.014e-05,2]
[401309939,1768125604401,500.0,9.014e-05,2]
[401309940,1768125604463,518.63,5e-05,2]
[401309941,1768125604675,500.0,9.014e-05,2]
[401309942,1768125605052,500.0,9.014e-05,2]
[401309943,1768125605088,518.63,5.5e-05,2]
[401309944,1768125605428,500.0,9.014e-05,2]
[401309945,1768125605555,518.63,6e-05,2]
[401309946,1768125605824,500.0,9.014e-05,2]
[401309947,1768125606034,518.63,6.5e-05,2]
[401309948,1768125606194,500.0,9.014e-05,2]
[401309949,1768125606561,500.0,9.014e-05,2]
[401309950,1768125606596,518.63,7.1e-05,2]
[401309951,1768125606917,500.0,9.014e-05,2]
[401309952,1768125607165,518.63,7.6e-05,2]
[401309953,1768125607270,500.0,9.014e-05,2]
[401309954,1768125607642,500.0,9.014e-05,2]
[401309955,1768125607758,518.63,8.1e-05,2]
[401309956,1768125608129,500.0,9.014e-05,2]
[401309957,1768125608240,518.63,8.6e-05,2]
[401309958,1768125608371,22.33,9.014e-05,2]
[401309959,1768125608394,477.67,9.014e-05,2]
[401309960,1768125608733,500.0,9.014e-05,2]
[401309961,1768125609119,500.0,9.014e-05,2]
[401309967,1768125656592,-151.77,8.87e-05,2]
[401309972,1768125894438,471.24,0.00030137,120]
[401309973,1768125920974,163.54,8.325e-05,2]
[401309974,1768125921382,186.9,8.634e-05,2]
[401309975,1768125922979,-306.827937,8.765e-05,2]
[401309976,1768125938310,-210.27,8.942e-05,2]
[401309989,1768126079772,663.5,5.974e-05,2]
[401309990,1768126079880,663.5,5.974e-05,2]
[401309991,1768126085322,407.7313739,7.537e-05,2]
[401310028,1768126238268,-518.63,9.1e-05,2]
[401310030,1768126238278,-547.0,9.1e-05,2]
[401310032,1768126238288,-177.38774538,9.326e-05,2]
[401310034,1768126238299,-269.957,9.326e-05,2]
[401310037,1768126238309,-362.56675708,9.412e-05,2]
[401310039,1768126238319,-500.0,9.412e-05,2]
[401310040,1768126238330,-500.0,9.412e-05,2]
[401310042,1768126238341,-500.0,9.412e-05,2]
[401310043,1768126238350,-167.41495976,9.412e-05,2]
[401310045,1768126238366,-332.58504024,9.412e-05,2]
[401310046,1768126238375,-500.0,9.412e-05,2]
[401310047,1768126238387,-500.0,9.412e-05,2]
[401310048,1768126238397,-250.74251735,9.412e-05,2]
[401310049,1768126238407,-500.0,9.412e-05,2]
[401310050,1768126238416,-500.0,9.412e-05,2]
[401310051,1768126238427,-500.0,9.412e-05,2]
[401310052,1768126238436,-500.0,9.412e-05,2]
[401310053,1768126238446,-500.0,9.412e-05,2]
[401310054,1768126238456,-500.0,9.412e-05,2]
[401310055,1768126238465,-500.0,9.412e-05,2]
[401310056,1768126238475,-500.0,9.412e-05,2]
[401310057,1768126238485,-500.0,9.412e-05,2]
[401310058,1768126238495,-500.0,9.412e-05,2]
[401310059,1768126238505,-500.0,9.412e-05,2]
[401310060,1768126238515,-500.0,9.412e-05,2]
[401310061,1768126238525,-500.0,9.412e-05,2]
[401310062,1768126238534,-500.0,9.412e-05,2]
[401310063,1768126238544,-500.0,9.412e-05,2]
[401310064,1768126238555,-500.0,9.412e-05,2]
[401310065,1768126238565,-578.96030956,9.412e-05,2]
[401310066,1768126238575,-500.0,9.412e-05,2]
[401310067,1768126238586,-191.90507331,9.412e-05,2]
[401310068,1768126238598,-500.0,9.412e-05,2]
[401310069,1768126238608,-500.0,9.412e-05,2]
[401310070,1768126238618,-500.0,9.412e-05,2]
[401310071,1768126238629,-500.0,9.412e-05,2]
[401310072,1768126238639,-500.0,9.412e-05,2]
[401310073,1768126238648,-500.0,9.412e-05,2]
[401310074,1768126238658,-300.0,9.412e-05,2]
[401310075,1768126238671,-1000000.0,9.413e-05,2]
[401310076,1768126238680,-50000.0,9.512e-05,2]
[401310077,1768126238690,-2870.56440792,9.516e-05,2]
[401310078,1768126238699,-481.12302121,9.537e-05,2]
[401310079,1768126238709,-518.63,9.6e-05,2]
[401310080,1768126238719,-300.0,9.785e-05,2]
[401310081,1768126238729,-300.0,9.785e-05,2]
[401310082,1768126238739,-300.0,9.785e-05,2]
[401310083,1768126238748,-300.0,9.785e-05,2]
[401310084,1768126238758,-300.0,9.785e-05,2]
[401310085,1768126238767,-300.0,9.785e-05,2]
[401310086,1768126238777,-300.0,9.785e-05,2]
[401310087,1768126238786,-300.0,9.785e-05,2]
[401310088,1768126238796,-300.0,9.785e-05,2]
[401310089,1768126238805,-300.0,9.785e-05,2]
[401310090,1768126238815,-300.0,9.785e-05,2]
[401310091,1768126238825,-300.0,9.785e-05,2]
[401310092,1768126238835,-300.0,9.785e-05,2]
[401310093,1768126238845,-300.0,9.785e-05,2]
[401310094,1768126238854,-300.0,9.785e-05,2]
[401310095,1768126238866,-600.0,9.98e-05,2]
[401310096,1768126238875,-333.99,0.0001,2]
[401310097,1768126238885,-500.0,0.00010064,2]
[401310098,1768126238895,-518.63,0.000101,2]
[401310099,1768126238905,-333.99,0.000102,2]
[401310100,1768126238915,-500.0,0.00010338,2]
[401310101,1768126238926,-420.0,0.00010353,2]
[401310102,1768126238936,-333.99,0.000104,2]
[401310103,1768126238947,-250.0,0.00010411,2]
[401310104,1768126238957,-500.0,0.00010512,2]
[401310105,1768126238966,-370.91,0.00010512,2]
[401310106,1768126238977,-370.91,0.00010512,2]
[401310107,1768126238987,-370.91,0.00010512,2]
[401310108,1768126238998,-370.91,0.00010512,2]
[401310109,1768126239008,-370.91,0.00010512,2]
[401310110,1768126239018,-370.91,0.00010512,2]
[401310111,1768126239028,-370.87,0.00010512,2]
[401310112,1768126239038,-333.99,0.000106,2]
[401310113,1768126239048,-518.63,0.000106,2]
[401310114,1768126239058,-500.0,0.00010612,2]
[401310115,1768126239083,-333.99,0.000108,2]
[401310116,1768126239093,-500.0,0.00010886,2]
[401310117,1768126239104,-720.0,0.00010978,2]
[401310118,1768126239113,-333.99,0.00011,2]
[401310119,1768126239123,-151.0,0.00011,2]
[401310120,1768126239132,-500.0,0.00011,2]
[401310121,1768126239142,-2628.0,0.00011,2]
[401310122,1768126239152,-190.86169873,0.00011,2]
[401310123,1768126239162,-171.51692933,0.00011,2]
[401310124,1768126239172,-500.0,0.00011,2]
[401310125,1768126239182,-500.0,0.00011,2]
[401310126,1768126239192,-500.0,0.00011,2]
[401310127,1768126239203,-500.0,0.00011,2]
[401310128,1768126239212,-500.0,0.00011,2]
[401310129,1768126239222,-154.30171575,0.00011,2]
[401310130,1768126239232,-500.0,0.00011137,2]
[401310131,1768126239242,-2628.0,0.00011137,2]
[401310132,1768126239253,-500.0,0.00011137,2]
[401310133,1768126239263,-500.0,0.00011137,2]
[401310134,1768126239273,-500.0,0.00011137,2]
[401310135,1768126239283,-500.0,0.00011137,2]
[401310136,1768126239292,-500.0,0.00011137,2]
[401310137,1768126239453,-201.95802809,0.00011137,2]
[401310138,1768126239473,-500.0,0.0001116,2]
[401310139,1768126239482,-518.63,0.000112,2]
[401310140,1768126239492,-163.14839871,0.00011274,2]
[401310141,1768126239501,-500.0,0.00011274,2]
[401310142,1768126239510,-2628.0,0.00011274,2]
[401310143,1768126239519,-223.56062369,0.00011274,2]
[401310144,1768126239528,-500.0,0.00011274,2]
[401310145,1768126239538,-500.0,0.00011274,2]
[401310146,1768126239547,-500.0,0.00011274,2]
[401310147,1768126239557,-500.0,0.00011274,2]
[401310148,1768126239566,-587.0,0.00011388,2]
[401310149,1768126239576,-500.0,0.00011411,2]
[401310150,1768126239590,-2628.0,0.00011411,2]
[401310151,1768126239601,-500.0,0.00011411,2]
[401310152,1768126239611,-300.0,0.00011411,2]
[401310153,1768126239620,-500.0,0.00011411,2]
[401310154,1768126239631,-250.0,0.00011411,2]
[401310155,1768126239641,-500.0,0.00011434,2]
[401310156,1768126239650,-554.51466851,0.00011537,2]
[401310157,1768126239661,-500.0,0.00011548,2]
[401310158,1768126239671,-2628.0,0.00011548,2]
[401310159,1768126239681,-500.00000003,0.00011548,2]
[401310160,1768126239690,-500.0,0.00011548,2]
[401310161,1768126239700,-500.0,0.00011685,2]
[401310162,1768126239711,-2628.0,0.00011685,2]
[401310163,1768126239721,-500.0,0.00011685,2]
[401310164,1768126239731,-518.63,0.000117,2]
[401310165,1768126239741,-500.0,0.00011708,2]
[401310166,1768126239750,-500.0,0.00011822,2]
[401310167,1768126239760,-2628.0,0.00011822,2]
[401310168,1768126239770,-500.0,0.00011822,2]
[401310169,1768126239779,-500.0,0.00011959,2]
[401310170,1768126239788,-2628.0,0.00011959,2]
[401310171,1768126239798,-500.0,0.00011959,2]
[401310172,1768126239807,-500.0,0.00011982,2]
[401310173,1768126239817,-250.0,0.00012024,2]
[401310174,1768126239827,-864.0,0.00012075,2]
[401310175,1768126239836,-500.0,0.00012096,2]
[401310176,1768126239850,-2628.0,0.00012096,2]
[401310177,1768126239859,-500.0,0.00012096,2]
[401310178,1768126239869,-518.63,0.000122,2]
[401310179,1768126239879,-2628.0,0.00012233,2]
[401310180,1768126239889,-500.0,0.00012233,2]
[401310181,1768126239898,-500.0,0.00012233,2]
[401310182,1768126239908,-384.00760187,0.00012256,2]
[401310183,1768126239918,-440.65,0.00012329,2]
[401310184,1768126239928,-367.21,0.00012329,2]
[401310186,1768126239936,-306.0,0.00012329,2]
[401310187,1768126239945,-255.0,0.00012329,2]
[401310188,1768126239954,-212.5,0.00012329,2]
[401310189,1768126239964,-177.09,0.00012329,2]
[401310190,1768126239973,-885.46,0.00012329,2]
[401310191,1768126239983,-369.72,0.00012329,2]
[401310193,1768126239992,-886.62578338,0.00012329,2]
[401310195,1768126240001,-886.62578338,0.00012329,2]
[401310196,1768126240011,-886.62578338,0.00012329,2]
[401310197,1768126240020,-886.62578338,0.00012329,2]
[401310198,1768126240029,-886.62578338,0.00012329,2]
[401310199,1768126240038,-886.62578338,0.00012329,2]
[401310200,1768126240048,-886.62578338,0.00012329,2]
[401310201,1768126240057,-886.62578338,0.00012329,2]
[401310202,1768126240067,-886.62578338,0.00012329,2]
[401310203,1768126240076,-886.62578338,0.00012329,2]
[401310204,1768126240086,-886.62578338,0.00012329,2]
[401310205,1768126240095,-886.62578338,0.00012329,2]
[401310206,1768126240104,-886.62578338,0.00012329,2]
[401310207,1768126240113,-886.62578338,0.00012329,2]
[401310208,1768126240123,-886.62578338,0.00012329,2]
[401310209,1768126240132,-886.62578338,0.00012329,2]
[401310210,1768126240141,-886.62578338,0.00012329,2]
[401310211,1768126240150,-886.62578338,0.00012329,2]
[401310212,1768126240159,-886.62578338,0.00012329,2]
[401310213,1768126240168,-886.62578338,0.00012329,2]
[401310214,1768126240177,-886.62578338,0.00012329,2]
[401310215,1768126240187,-886.62578338,0.00012329,2]
[401310216,1768126240196,-886.62578338,0.00012329,2]
[401310217,1768126240205,-886.62578338,0.00012329,2]
[401310218,1768126240216,-886.62578338,0.00012329,2]
[401310219,1768126240226,-886.62578338,0.00012329,2]
[401310221,1768126240235,-886.62578338,0.00012329,2]
[401310223,1768126240245,-886.62578338,0.00012329,2]
[401310225,1768126240254,-886.62578338,0.00012329,2]
[401310228,1768126240264,-886.62578338,0.00012329,2]
[401310230,1768126240274,-886.62578338,0.00012329,2]
[401310233,1768126240285,-886.62578338,0.00012329,2]
[401310235,1768126240296,-886.62578338,0.00012329,2]
[401310237,1768126240305,-886.62578338,0.00012329,2]
[401310239,1768126240315,-886.62578338,0.00012329,2]
[401310241,1768126240325,-886.62578338,0.00012329,2]
[401310244,1768126240335,-886.62578338,0.00012329,2]
[401310246,1768126240345,-886.62578338,0.00012329,2]
[401310249,1768126240354,-886.62578338,0.00012329,2]
[401310252,1768126240365,-886.62578338,0.00012329,2]
[401310255,1768126240375,-886.62578338,0.00012329,2]